[Event "Titled Tuesday Blitz July 25 Early 2023"]
[White "Stork, Oliver"]
[Black "Ardila, Oscar Humberto"]
[WhiteFideId "12955728"]
[BlackFideId "4404742"]
[WhiteElo "2389"]
[BlackElo "2247"]
[Result "1-0"]
[Round "4"]
[TimeControl "180+2"]
[Date "2023.07.25"]
[WhiteClock "0:00:06"]
[BlackClock "0:00:02"]
[Board "216"]

1. e4 {[%clk 0:03:00]}  e5 {[%clk 0:02:58]} 2. Nf3 {[%clk 0:02:58]}  Nf6 {[%clk 0:02:58]} 3. Nc3 {[%clk 0:02:55]}  Nc6 {[%clk 0:02:57]} 4. Bb5 {[%clk 0:02:54]}  Bb4 {[%clk 0:02:57]} 5. O-O {[%clk 0:02:52]}  O-O {[%clk 0:02:55]} 6. d3 {[%clk 0:02:52]}  d6 {[%clk 0:02:55]} 7. Bg5 {[%clk 0:02:52]}  Bxc3 {[%clk 0:02:53]} 8. bxc3 {[%clk 0:02:51]}  Qe7 {[%clk 0:02:54]} 9. h3 {[%clk 0:02:47]}  Nd8 {[%clk 0:02:53]} 10. Re1 {[%clk 0:02:34]}  Ne6 {[%clk 0:02:52]} 11. Bc1 {[%clk 0:02:31]}  Rd8 {[%clk 0:02:50]} 12. d4 {[%clk 0:02:31]}  Nf8 {[%clk 0:02:49]} 13. a4 {[%clk 0:02:27]}  c5 {[%clk 0:02:48]} 14. Ba3 {[%clk 0:02:13]}  Ng6 {[%clk 0:02:45]} 15. Qd2 {[%clk 0:02:02]}  a6 {[%clk 0:02:37]} 16. Bf1 {[%clk 0:02:02]}  b6 {[%clk 0:02:36]} 17. Rad1 {[%clk 0:01:59]}  Bb7 {[%clk 0:02:36]} 18. Bd3 {[%clk 0:01:50]}  Rac8 {[%clk 0:02:32]} 19. Qe2 {[%clk 0:01:41]}  Nf4 {[%clk 0:02:30]} 20. Qf1 {[%clk 0:01:41]}  Ra8 {[%clk 0:01:45]} 21. g3 {[%clk 0:01:18]}  Nxd3 {[%clk 0:01:44]} 22. cxd3 {[%clk 0:01:19]}  Bc6 {[%clk 0:01:31]} 23. a5 {[%clk 0:01:11]}  b5 {[%clk 0:01:29]} 24. dxc5 {[%clk 0:01:10]}  dxc5 {[%clk 0:01:29]} 25. d4 {[%clk 0:01:09]}  exd4 {[%clk 0:01:24]} 26. cxd4 {[%clk 0:01:09]}  Bxe4 {[%clk 0:01:11]} 27. Bxc5 {[%clk 0:01:05]}  Qb7 {[%clk 0:01:11]} 28. Ne5 {[%clk 0:01:02]}  Bd5 {[%clk 0:00:50]} 29. Bb6 {[%clk 0:00:50]}  Re8 {[%clk 0:00:49]} 30. Rc1 {[%clk 0:00:47]}  Rac8 {[%clk 0:00:49]} 31. Qd3 {[%clk 0:00:46]}  Be4 {[%clk 0:00:42]} 32. Qd2 {[%clk 0:00:44]}  Bh1 {[%clk 0:00:37]} 33. f4 {[%clk 0:00:31]}  Bd5 {[%clk 0:00:25]} 34. Rc5 {[%clk 0:00:24]}  Ne4 {[%clk 0:00:24]} 35. Rxc8 {[%clk 0:00:22]}  Rxc8 {[%clk 0:00:24]} 36. Qb4 {[%clk 0:00:20]}  f6 {[%clk 0:00:23]} 37. Nd3 {[%clk 0:00:18]}  Qd7 {[%clk 0:00:21]} 38. Nc5 {[%clk 0:00:18]}  Qxh3 {[%clk 0:00:20]} 39. Nxe4 {[%clk 0:00:18]}  Bxe4 {[%clk 0:00:18]} 40. Qb3+ {[%clk 0:00:18]}  Kh8 {[%clk 0:00:16]} 41. Rxe4 {[%clk 0:00:18]}  Rc1+ {[%clk 0:00:15]} 42. Kf2 {[%clk 0:00:19]}  Qh2+ {[%clk 0:00:15]} 43. Kf3 {[%clk 0:00:19]}  Qh1+ {[%clk 0:00:14]} 44. Kg4 {[%clk 0:00:20]}  h5+ {[%clk 0:00:12]} 45. Kf5 {[%clk 0:00:19]}  g6+ {[%clk 0:00:11]} 46. Kxf6 {[%clk 0:00:19]}  Qxe4 {[%clk 0:00:11]} 47. Qb4 {[%clk 0:00:18]}  Rc6+ {[%clk 0:00:11]} 48. Kg5 {[%clk 0:00:17]}  Qf5+ {[%clk 0:00:10]} 49. Kh6 {[%clk 0:00:18]}  Qf7 {[%clk 0:00:06]} 50. d5 {[%clk 0:00:15]}  Rf6 {[%clk 0:00:05]} 51. Bd4 {[%clk 0:00:13]}  Kg8 {[%clk 0:00:03]} 52. Bxf6 {[%clk 0:00:13]}  Qxf6 {[%clk 0:00:03]} 53. d6 {[%clk 0:00:12]}  g5+ {[%clk 0:00:03]} 54. Kxh5 {[%clk 0:00:12]}  gxf4 {[%clk 0:00:04]} 55. Qxf4 {[%clk 0:00:11]}  Qe6 {[%clk 0:00:03]} 56. Qd4 {[%clk 0:00:05]}  Kh7 {[%clk 0:00:03]} 57. d7 {[%clk 0:00:05]}  Qh6+ {[%clk 0:00:03]} 58. Kg4 {[%clk 0:00:05]}  Qg6+ {[%clk 0:00:03]} 59. Kh3 {[%clk 0:00:06]}  Qe6+ {[%clk 0:00:02]} 60. Kg2 {[%clk 0:00:06]}  Qe2+ {[%clk 0:00:02]} 61. Qf2 {[%clk 0:00:06]}  Qe4+ {[%clk 0:00:02]} 62. Kg1 {[%clk 0:00:06]} 1-0


[Site "https://www.chess.com"]

[Event "Titled Tuesday Blitz July 25 Early 2023"]
[White "Goswami, Vedant"]
[Black "Hrescak, Ivana"]
[WhiteFideId "5003725"]
[BlackFideId "14613441"]
[WhiteElo "2351"]
[BlackElo "2134"]
[Result "1/2-1/2"]
[Round "4"]
[TimeControl "180+2"]
[Date "2023.07.25"]
[WhiteClock "0:00:08"]
[BlackClock "0:00:02"]
[Board "218"]

1. e4 {[%clk 0:02:52]}  e5 {[%clk 0:02:59]} 2. Nf3 {[%clk 0:02:51]}  Nc6 {[%clk 0:02:59]} 3. Bb5 {[%clk 0:02:50]}  a6 {[%clk 0:02:58]} 4. Ba4 {[%clk 0:02:49]}  b5 {[%clk 0:02:58]} 5. Bb3 {[%clk 0:02:49]}  g6 {[%clk 0:02:58]} 6. d4 {[%clk 0:02:47]}  exd4 {[%clk 0:02:56]} 7. Nxd4 {[%clk 0:02:45]}  Na5 {[%clk 0:02:56]} 8. O-O {[%clk 0:02:29]}  c5 {[%clk 0:02:43]} 9. Bd5 {[%clk 0:02:27]}  Rb8 {[%clk 0:02:38]} 10. Nf3 {[%clk 0:02:16]}  Nf6 {[%clk 0:02:34]} 11. Bg5 {[%clk 0:02:15]}  Be7 {[%clk 0:02:33]} 12. Re1 {[%clk 0:02:12]}  O-O {[%clk 0:02:31]} 13. Bh6 {[%clk 0:02:02]}  Re8 {[%clk 0:02:29]} 14. Ng5 {[%clk 0:01:51]}  Nxd5 {[%clk 0:02:26]} 15. Qxd5 {[%clk 0:01:50]}  Bxg5 {[%clk 0:02:12]} 16. Bxg5 {[%clk 0:01:50]}  Qb6 {[%clk 0:02:07]} 17. Nc3 {[%clk 0:01:46]}  Nc4 {[%clk 0:01:36]} 18. b3 {[%clk 0:01:40]}  Ne5 {[%clk 0:01:19]} 19. f4 {[%clk 0:01:39]}  Bb7 {[%clk 0:01:01]} 20. Qd2 {[%clk 0:01:38]}  Nc6 {[%clk 0:00:58]} 21. Nd5 {[%clk 0:01:38]}  Qa5 {[%clk 0:00:52]} 22. Nf6+ {[%clk 0:01:33]}  Kg7 {[%clk 0:00:46]} 23. Nxe8+ {[%clk 0:01:23]}  Rxe8 {[%clk 0:00:46]} 24. Qxa5 {[%clk 0:01:19]}  Nxa5 {[%clk 0:00:47]} 25. e5 {[%clk 0:01:20]}  Bc6 {[%clk 0:00:28]} 26. Rad1 {[%clk 0:01:18]}  c4 {[%clk 0:00:20]} 27. Bf6+ {[%clk 0:01:17]}  Kg8 {[%clk 0:00:19]} 28. Re3 {[%clk 0:01:13]}  cxb3 {[%clk 0:00:18]} 29. axb3 {[%clk 0:01:12]}  Nb7 {[%clk 0:00:18]} 30. Rdd3 {[%clk 0:01:11]}  Nc5 {[%clk 0:00:17]} 31. Rc3 {[%clk 0:01:09]}  Ne6 {[%clk 0:00:14]} 32. g3 {[%clk 0:01:02]}  Nc7 {[%clk 0:00:14]} 33. Red3 {[%clk 0:00:58]}  Nd5 {[%clk 0:00:13]} 34. Rc5 {[%clk 0:00:57]}  Nxf6 {[%clk 0:00:13]} 35. exf6 {[%clk 0:00:57]}  Re6 {[%clk 0:00:10]} 36. Re5 {[%clk 0:00:52]}  Rxf6 {[%clk 0:00:10]} 37. Kf2 {[%clk 0:00:52]}  Kg7 {[%clk 0:00:10]} 38. Ke3 {[%clk 0:00:51]}  h5 {[%clk 0:00:10]} 39. h3 {[%clk 0:00:50]}  d6 {[%clk 0:00:07]} 40. Re7 {[%clk 0:00:48]}  Bg2 {[%clk 0:00:04]} 41. h4 {[%clk 0:00:47]}  Kf8 {[%clk 0:00:04]} 42. Ra7 {[%clk 0:00:46]}  Re6+ {[%clk 0:00:04]} 43. Kf2 {[%clk 0:00:46]}  Be4 {[%clk 0:00:04]} 44. Rd2 {[%clk 0:00:45]}  d5 {[%clk 0:00:04]} 45. b4 {[%clk 0:00:43]}  Rc6 {[%clk 0:00:03]} 46. Ke3 {[%clk 0:00:41]}  Kg7 {[%clk 0:00:03]} 47. Kd4 {[%clk 0:00:40]}  Kf6 {[%clk 0:00:03]} 48. Re2 {[%clk 0:00:27]}  Rc4+ {[%clk 0:00:04]} 49. Ke3 {[%clk 0:00:26]}  Rxb4 {[%clk 0:00:04]} 50. c3 {[%clk 0:00:24]}  Rc4 {[%clk 0:00:04]} 51. Kd2 {[%clk 0:00:23]}  Ra4 {[%clk 0:00:04]} 52. Re3 {[%clk 0:00:18]}  Ra2+ {[%clk 0:00:04]} 53. Kd1 {[%clk 0:00:17]}  a5 {[%clk 0:00:04]} 54. Ke1 {[%clk 0:00:13]}  a4 {[%clk 0:00:04]} 55. Rb7 {[%clk 0:00:13]}  Rb2 {[%clk 0:00:04]} 56. Ra7 {[%clk 0:00:12]}  Rb3 {[%clk 0:00:04]} 57. Kd2 {[%clk 0:00:11]}  Rb2+ {[%clk 0:00:04]} 58. Kc1 {[%clk 0:00:11]}  Rb3 {[%clk 0:00:04]} 59. Kd2 {[%clk 0:00:09]}  a3 {[%clk 0:00:04]} 60. Kc1 {[%clk 0:00:08]}  Rb1+ {[%clk 0:00:03]} 61. Kd2 {[%clk 0:00:07]}  Rb2+ {[%clk 0:00:03]} 62. Kc1 {[%clk 0:00:07]}  Rb3 {[%clk 0:00:04]} 63. Kd2 {[%clk 0:00:07]}  Rb2+ {[%clk 0:00:01]} 64. Kc1 {[%clk 0:00:07]}  Rb3 {[%clk 0:00:02]} 65. Kd2 {[%clk 0:00:08]}  Rb2+ {[%clk 0:00:02]} 1/2-1/2


[Site "https://www.chess.com"]

[Event "Titled Tuesday Blitz July 25 Early 2023"]
[White "Fisabilillah, Ummi"]
[Black "Castillo Pena, Patricia Evarista"]
[WhiteFideId "7104804"]
[BlackFideId "6412106"]
[WhiteElo "2349"]
[BlackElo "2004"]
[Result "1-0"]
[Round "4"]
[TimeControl "180+2"]
[Date "2023.07.25"]
[WhiteClock "0:02:20"]
[BlackClock "0:00:04"]
[Board "219"]

1. e4 {[%clk 0:02:58]}  c5 {[%clk 0:02:58]} 2. Nf3 {[%clk 0:02:54]}  d6 {[%clk 0:02:51]} 3. Bb5+ {[%clk 0:02:54]}  Nd7 {[%clk 0:02:51]} 4. O-O {[%clk 0:02:54]}  a6 {[%clk 0:02:49]} 5. Bd3 {[%clk 0:02:54]}  Ngf6 {[%clk 0:02:48]} 6. Re1 {[%clk 0:02:54]}  e5 {[%clk 0:02:46]} 7. c3 {[%clk 0:02:55]}  Be7 {[%clk 0:02:46]} 8. Bc2 {[%clk 0:02:56]}  O-O {[%clk 0:02:46]} 9. d4 {[%clk 0:02:57]}  b5 {[%clk 0:02:45]} 10. Bg5 {[%clk 0:02:55]}  Bb7 {[%clk 0:02:44]} 11. Nbd2 {[%clk 0:02:56]}  h6 {[%clk 0:02:43]} 12. Bh4 {[%clk 0:02:56]}  Qc7 {[%clk 0:02:42]} 13. Nf1 {[%clk 0:02:55]}  Rfe8 {[%clk 0:02:41]} 14. Rc1 {[%clk 0:02:48]}  Rac8 {[%clk 0:02:40]} 15. Ne3 {[%clk 0:02:38]}  Bf8 {[%clk 0:01:12]} 16. Nf5 {[%clk 0:02:37]}  g6 {[%clk 0:01:05]} 17. Ng3 {[%clk 0:02:34]}  Bg7 {[%clk 0:01:04]} 18. d5 {[%clk 0:02:28]}  c4 {[%clk 0:01:00]} 19. Qd2 {[%clk 0:02:26]}  Nc5 {[%clk 0:00:53]} 20. Bxf6 {[%clk 0:02:26]}  Bxf6 {[%clk 0:00:52]} 21. Qxh6 {[%clk 0:02:27]}  Bg7 {[%clk 0:00:52]} 22. Qe3 {[%clk 0:02:26]}  Rcd8 {[%clk 0:00:39]} 23. h4 {[%clk 0:02:25]}  Qe7 {[%clk 0:00:34]} 24. h5 {[%clk 0:02:26]}  Bc8 {[%clk 0:00:29]} 25. hxg6 {[%clk 0:02:24]}  fxg6 {[%clk 0:00:30]} 26. b4 {[%clk 0:02:21]}  cxb3 {[%clk 0:00:24]} 27. axb3 {[%clk 0:02:21]}  Bg4 {[%clk 0:00:24]} 28. b4 {[%clk 0:02:21]}  Nd7 {[%clk 0:00:22]} 29. Ra1 {[%clk 0:02:22]}  Rf8 {[%clk 0:00:19]} 30. Nh2 {[%clk 0:02:22]}  Nf6 {[%clk 0:00:14]} 31. Rxa6 {[%clk 0:02:21]}  Bc8 {[%clk 0:00:12]} 32. Ra5 {[%clk 0:02:20]}  Qd7 {[%clk 0:00:06]} 33. Bd3 {[%clk 0:02:19]}  Ng4 {[%clk 0:00:04]} 34. Nxg4 {[%clk 0:02:20]}  Qxg4 {[%clk 0:00:04]} 35. Bxb5 {[%clk 0:02:20]} 1-0


[Site "https://www.chess.com"]

[Event "Titled Tuesday Blitz July 25 Early 2023"]
[White "Orlov, Georgi"]
[Black "Samaganova, Aleksandra"]
[WhiteFideId "2011271"]
[BlackFideId "13800221"]
[WhiteElo "2560"]
[BlackElo "2255"]
[Result "0-1"]
[Round "4"]
[TimeControl "180+2"]
[Date "2023.07.25"]
[WhiteClock "0:00:07"]
[BlackClock "0:00:02"]
[Board "222"]

1. e4 {[%clk 0:02:52]}  e6 {[%clk 0:02:58]} 2. d4 {[%clk 0:02:51]}  d5 {[%clk 0:02:57]} 3. Nc3 {[%clk 0:02:44]}  Bb4 {[%clk 0:02:56]} 4. Ne2 {[%clk 0:02:40]}  dxe4 {[%clk 0:02:51]} 5. a3 {[%clk 0:02:39]}  Bxc3+ {[%clk 0:02:50]} 6. Nxc3 {[%clk 0:02:38]}  Nc6 {[%clk 0:02:40]} 7. Bb5 {[%clk 0:02:30]}  Ne7 {[%clk 0:02:36]} 8. Bg5 {[%clk 0:02:29]}  f6 {[%clk 0:02:19]} 9. Be3 {[%clk 0:02:27]}  f5 {[%clk 0:02:15]} 10. f3 {[%clk 0:02:24]}  exf3 {[%clk 0:02:06]} 11. gxf3 {[%clk 0:02:23]}  O-O {[%clk 0:02:04]} 12. Qd2 {[%clk 0:02:21]}  a6 {[%clk 0:01:32]} 13. Bc4 {[%clk 0:02:13]}  Nd5 {[%clk 0:01:23]} 14. Bg5 {[%clk 0:02:13]}  Qd6 {[%clk 0:01:14]} 15. Rg1 {[%clk 0:02:10]}  Kh8 {[%clk 0:01:05]} 16. O-O-O {[%clk 0:02:08]}  Nxc3 {[%clk 0:01:01]} 17. Qxc3 {[%clk 0:02:05]}  Ne7 {[%clk 0:00:51]} 18. Qd2 {[%clk 0:01:50]}  Nd5 {[%clk 0:00:49]} 19. Rg3 {[%clk 0:01:27]}  b5 {[%clk 0:00:43]} 20. Bb3 {[%clk 0:01:25]}  Bb7 {[%clk 0:00:37]} 21. Rdg1 {[%clk 0:01:24]}  Rf7 {[%clk 0:00:36]} 22. Rh3 {[%clk 0:01:14]}  c5 {[%clk 0:00:34]} 23. c3 {[%clk 0:01:05]}  b4 {[%clk 0:00:18]} 24. axb4 {[%clk 0:01:05]}  cxb4 {[%clk 0:00:18]} 25. c4 {[%clk 0:01:05]}  Rc8 {[%clk 0:00:18]} 26. Kb1 {[%clk 0:01:04]}  Nf6 {[%clk 0:00:15]} 27. Bf4 {[%clk 0:01:02]}  Qe7 {[%clk 0:00:12]} 28. Be5 {[%clk 0:01:01]}  a5 {[%clk 0:00:06]} 29. Qg5 {[%clk 0:00:46]}  a4 {[%clk 0:00:05]} 30. Bxa4 {[%clk 0:00:45]}  Rxc4 {[%clk 0:00:05]} 31. Bb3 {[%clk 0:00:45]}  Rc8 {[%clk 0:00:05]} 32. Qh4 {[%clk 0:00:44]}  Bd5 {[%clk 0:00:03]} 33. Bxd5 {[%clk 0:00:37]}  exd5 {[%clk 0:00:03]} 34. Qg5 {[%clk 0:00:32]}  b3 {[%clk 0:00:03]} 35. Qxf5 {[%clk 0:00:28]}  Ra8 {[%clk 0:00:03]} 36. f4 {[%clk 0:00:16]}  Qa7 {[%clk 0:00:02]} 37. Rxb3 {[%clk 0:00:12]}  Qa1+ {[%clk 0:00:02]} 38. Kc2 {[%clk 0:00:12]}  Qxg1 {[%clk 0:00:02]} 39. Rg3 {[%clk 0:00:11]}  Qf2+ {[%clk 0:00:02]} 40. Kd1 {[%clk 0:00:07]}  Qf1+ {[%clk 0:00:02]} 41. Kc2 {[%clk 0:00:07]}  Qe2+ {[%clk 0:00:02]} 42. Kb3 {[%clk 0:00:07]}  Qc4# {[%clk 0:00:02]} 0-1


[Site "https://www.chess.com"]

[Event "Titled Tuesday Blitz July 25 Early 2023"]
[White "rikchessmx"]
[Black "Womacka, Mathias"]
[BlackFideId "4611390"]
[WhiteElo "2254"]
[BlackElo "2509"]
[Result "1-0"]
[Round "4"]
[TimeControl "180+2"]
[Date "2023.07.25"]
[WhiteClock "0:01:37"]
[BlackClock "0:01:45"]
[Board "223"]

1. e4 {[%clk 0:02:58]}  c5 {[%clk 0:02:59]} 2. Nf3 {[%clk 0:02:58]}  d6 {[%clk 0:03:00]} 3. d4 {[%clk 0:02:58]}  cxd4 {[%clk 0:03:01]} 4. Nxd4 {[%clk 0:02:58]}  Nf6 {[%clk 0:03:01]} 5. Nc3 {[%clk 0:02:59]}  a6 {[%clk 0:03:01]} 6. f4 {[%clk 0:02:59]}  e5 {[%clk 0:03:00]} 7. Nf3 {[%clk 0:03:00]}  Nbd7 {[%clk 0:03:00]} 8. Bd3 {[%clk 0:03:00]}  Be7 {[%clk 0:03:00]} 9. O-O {[%clk 0:03:01]}  b5 {[%clk 0:02:59]} 10. a3 {[%clk 0:03:01]}  O-O {[%clk 0:02:58]} 11. Kh1 {[%clk 0:03:01]}  Bb7 {[%clk 0:02:58]} 12. Qe1 {[%clk 0:03:02]}  Rc8 {[%clk 0:02:54]} 13. fxe5 {[%clk 0:03:02]}  Nxe5 {[%clk 0:02:52]} 14. Nd4 {[%clk 0:03:02]}  g6 {[%clk 0:02:36]} 15. Bh6 {[%clk 0:03:00]}  Re8 {[%clk 0:02:36]} 16. Rd1 {[%clk 0:02:44]}  Nc4 {[%clk 0:02:32]} 17. Bxc4 {[%clk 0:02:40]}  Rxc4 {[%clk 0:02:33]} 18. e5 {[%clk 0:02:23]}  dxe5 {[%clk 0:02:28]} 19. Nf5 {[%clk 0:02:22]}  Qc7 {[%clk 0:02:25]} 20. Nxe7+ {[%clk 0:02:21]}  Qxe7 {[%clk 0:02:25]} 21. Bg5 {[%clk 0:02:21]}  Rc6 {[%clk 0:02:24]} 22. Qh4 {[%clk 0:02:19]}  Rd8 {[%clk 0:02:10]} 23. Rxd8+ {[%clk 0:02:12]}  Qxd8 {[%clk 0:02:11]} 24. Ne4 {[%clk 0:02:08]}  h5 {[%clk 0:01:50]} 25. Nxf6+ {[%clk 0:02:03]}  Kh8 {[%clk 0:01:50]} 26. Nxh5 {[%clk 0:01:59]}  Rxc2 {[%clk 0:01:48]} 27. Bxd8 {[%clk 0:01:42]}  Rxg2 {[%clk 0:01:46]} 28. Nf4+ {[%clk 0:01:37]}  Kg7 {[%clk 0:01:45]} 29. Nxg2 {[%clk 0:01:37]} 1-0


[Site "https://www.chess.com"]

[Event "Titled Tuesday Blitz July 25 Early 2023"]
[White "Joshi, Pankaj"]
[Black "Karamsetty, Jeevan"]
[WhiteFideId "5006210"]
[BlackFideId "2025337"]
[WhiteElo "2250"]
[BlackElo "2476"]
[Result "0-1"]
[Round "4"]
[TimeControl "180+2"]
[Date "2023.07.25"]
[WhiteClock "0:00:09"]
[BlackClock "0:00:03"]
[Board "224"]

1. e4 {[%clk 0:03:00]}  e5 {[%clk 0:02:59]} 2. Nf3 {[%clk 0:03:00]}  Nc6 {[%clk 0:02:59]} 3. Bc4 {[%clk 0:03:01]}  Bc5 {[%clk 0:02:58]} 4. c3 {[%clk 0:03:01]}  Nf6 {[%clk 0:02:55]} 5. d3 {[%clk 0:03:01]}  d6 {[%clk 0:02:53]} 6. Bb3 {[%clk 0:03:00]}  O-O {[%clk 0:02:53]} 7. Bg5 {[%clk 0:02:59]}  a5 {[%clk 0:02:47]} 8. Nbd2 {[%clk 0:02:56]}  Be6 {[%clk 0:02:46]} 9. Bc2 {[%clk 0:02:55]}  b5 {[%clk 0:02:36]} 10. Nf1 {[%clk 0:02:47]}  d5 {[%clk 0:02:12]} 11. Qe2 {[%clk 0:02:46]}  dxe4 {[%clk 0:02:08]} 12. dxe4 {[%clk 0:02:02]}  Bc4 {[%clk 0:01:53]} 13. Qd2 {[%clk 0:02:02]}  Qe7 {[%clk 0:01:50]} 14. Ne3 {[%clk 0:01:45]}  Rad8 {[%clk 0:01:46]} 15. Qc1 {[%clk 0:01:44]}  Bd3 {[%clk 0:01:36]} 16. Nf5 {[%clk 0:01:30]}  Qe6 {[%clk 0:01:31]} 17. Bb3 {[%clk 0:01:31]}  Bc4 {[%clk 0:01:30]} 18. Bxf6 {[%clk 0:01:28]}  Qxf6 {[%clk 0:01:25]} 19. Bxc4 {[%clk 0:01:26]}  bxc4 {[%clk 0:01:26]} 20. O-O {[%clk 0:01:25]}  h6 {[%clk 0:01:13]} 21. b3 {[%clk 0:01:21]}  Rd3 {[%clk 0:01:07]} 22. Ne1 {[%clk 0:01:05]}  Rd7 {[%clk 0:01:00]} 23. bxc4 {[%clk 0:01:00]}  Rfd8 {[%clk 0:01:00]} 24. Nc2 {[%clk 0:00:55]}  Rd2 {[%clk 0:00:58]} 25. Nce3 {[%clk 0:00:55]}  Qg6 {[%clk 0:00:51]} 26. Nd5 {[%clk 0:00:51]}  Rd3 {[%clk 0:00:37]} 27. Qc2 {[%clk 0:00:51]}  Rh3 {[%clk 0:00:35]} 28. Kh1 {[%clk 0:00:51]}  Rh5 {[%clk 0:00:35]} 29. Qa4 {[%clk 0:00:51]}  Kh7 {[%clk 0:00:29]} 30. Qb5 {[%clk 0:00:35]}  Bb6 {[%clk 0:00:16]} 31. Nxb6 {[%clk 0:00:34]}  cxb6 {[%clk 0:00:17]} 32. Qxb6 {[%clk 0:00:34]}  Rd3 {[%clk 0:00:15]} 33. Rad1 {[%clk 0:00:29]}  Rxd1 {[%clk 0:00:13]} 34. Rxd1 {[%clk 0:00:29]}  Qg4 {[%clk 0:00:09]} 35. Ne3 {[%clk 0:00:29]}  Qf4 {[%clk 0:00:05]} 36. h3 {[%clk 0:00:25]}  Qxe4 {[%clk 0:00:05]} 37. Rd5 {[%clk 0:00:20]}  Rxh3+ {[%clk 0:00:05]} 38. Kg1 {[%clk 0:00:19]}  Rh5 {[%clk 0:00:05]} 39. Qxc6 {[%clk 0:00:19]}  Qb1+ {[%clk 0:00:05]} 40. Nf1 {[%clk 0:00:17]}  Qxa2 {[%clk 0:00:04]} 41. Rd1 {[%clk 0:00:15]}  Rf5 {[%clk 0:00:04]} 42. Qe4 {[%clk 0:00:15]}  Qxf2+ {[%clk 0:00:04]} 43. Kh1 {[%clk 0:00:15]}  g6 {[%clk 0:00:05]} 44. Ng3 {[%clk 0:00:10]}  Qxg3 {[%clk 0:00:05]} 45. Rd7 {[%clk 0:00:09]}  Rf1# {[%clk 0:00:03]} 0-1


[Site "https://www.chess.com"]

[Event "Titled Tuesday Blitz July 25 Early 2023"]
[White "Molenda, Marcin"]
[Black "Vemparala, Nikash"]
[WhiteFideId "1173065"]
[BlackFideId "30960967"]
[WhiteElo "2440"]
[BlackElo "2236"]
[Result "1-0"]
[Round "4"]
[TimeControl "180+2"]
[Date "2023.07.25"]
[WhiteClock "0:01:11"]
[BlackClock "0:01:14"]
[Board "227"]

1. Nf3 {[%clk 0:03:00]}  d5 {[%clk 0:02:58]} 2. g3 {[%clk 0:02:59]}  c5 {[%clk 0:02:56]} 3. Bg2 {[%clk 0:03:00]}  Nc6 {[%clk 0:02:56]} 4. O-O {[%clk 0:03:00]}  g6 {[%clk 0:02:56]} 5. d4 {[%clk 0:03:01]}  cxd4 {[%clk 0:02:53]} 6. Nxd4 {[%clk 0:03:02]}  Bg7 {[%clk 0:02:53]} 7. Nxc6 {[%clk 0:03:00]}  bxc6 {[%clk 0:02:54]} 8. c4 {[%clk 0:03:00]}  e6 {[%clk 0:02:54]} 9. e4 {[%clk 0:02:57]}  d4 {[%clk 0:02:40]} 10. Na3 {[%clk 0:02:34]}  Ne7 {[%clk 0:02:35]} 11. Nc2 {[%clk 0:02:12]}  c5 {[%clk 0:02:27]} 12. Ne1 {[%clk 0:02:11]}  O-O {[%clk 0:02:23]} 13. Nd3 {[%clk 0:02:12]}  Qc7 {[%clk 0:02:20]} 14. f4 {[%clk 0:02:10]}  Bb7 {[%clk 0:02:16]} 15. Bd2 {[%clk 0:02:07]}  f5 {[%clk 0:02:15]} 16. Qe2 {[%clk 0:02:07]}  Rae8 {[%clk 0:02:05]} 17. e5 {[%clk 0:01:58]}  Bxg2 {[%clk 0:02:02]} 18. Qxg2 {[%clk 0:01:59]}  g5 {[%clk 0:01:56]} 19. Rae1 {[%clk 0:01:34]}  Ng6 {[%clk 0:01:50]} 20. b3 {[%clk 0:01:30]}  h5 {[%clk 0:01:45]} 21. fxg5 {[%clk 0:01:24]}  Nxe5 {[%clk 0:01:38]} 22. Nxe5 {[%clk 0:01:24]}  Bxe5 {[%clk 0:01:36]} 23. Qe2 {[%clk 0:01:24]}  Bg7 {[%clk 0:01:29]} 24. Qxh5 {[%clk 0:01:24]}  e5 {[%clk 0:01:23]} 25. g6 {[%clk 0:01:19]}  Rf6 {[%clk 0:01:16]} 26. Qh7+ {[%clk 0:01:11]}  Kf8 {[%clk 0:01:14]} 27. Bh6 {[%clk 0:01:11]} 1-0


[Site "https://www.chess.com"]

[Event "Titled Tuesday Blitz July 25 Early 2023"]
[White "Al Mukhaini, Shima"]
[Black "Fernandez Hernandez, Gerardo"]
[WhiteFideId "22005854"]
[BlackFideId "2207400"]
[WhiteElo "2402"]
[BlackElo "2233"]
[Result "1-0"]
[Round "4"]
[TimeControl "180+2"]
[Date "2023.07.25"]
[WhiteClock "0:01:06"]
[BlackClock "0:00:14"]
[Board "228"]

1. b3 {[%clk 0:02:57]}  d6 {[%clk 0:02:59]} 2. Bb2 {[%clk 0:02:57]}  Nd7 {[%clk 0:03:00]} 3. e3 {[%clk 0:02:57]}  Ngf6 {[%clk 0:03:00]} 4. d4 {[%clk 0:02:57]}  g6 {[%clk 0:03:00]} 5. Nf3 {[%clk 0:02:57]}  Bg7 {[%clk 0:03:01]} 6. Be2 {[%clk 0:02:57]}  O-O {[%clk 0:03:01]} 7. O-O {[%clk 0:02:57]}  e5 {[%clk 0:03:01]} 8. dxe5 {[%clk 0:02:57]}  Ng4 {[%clk 0:03:01]} 9. c4 {[%clk 0:02:57]}  Ndxe5 {[%clk 0:03:00]} 10. Nxe5 {[%clk 0:02:57]}  Nxe5 {[%clk 0:02:56]} 11. Nc3 {[%clk 0:02:57]}  Be6 {[%clk 0:02:44]} 12. h3 {[%clk 0:02:54]}  Qe7 {[%clk 0:02:41]} 13. Qc2 {[%clk 0:02:54]}  c6 {[%clk 0:02:37]} 14. Rad1 {[%clk 0:02:53]}  Rad8 {[%clk 0:02:30]} 15. Rd2 {[%clk 0:02:51]}  Rd7 {[%clk 0:02:06]} 16. Rfd1 {[%clk 0:02:50]}  Rfd8 {[%clk 0:02:06]} 17. Ba3 {[%clk 0:02:50]}  c5 {[%clk 0:01:50]} 18. Nd5 {[%clk 0:02:44]}  Bxd5 {[%clk 0:01:45]} 19. Rxd5 {[%clk 0:02:45]}  Nc6 {[%clk 0:01:34]} 20. Qd2 {[%clk 0:02:41]}  b6 {[%clk 0:01:23]} 21. Bf3 {[%clk 0:02:30]}  Ne5 {[%clk 0:01:12]} 22. Be2 {[%clk 0:02:27]}  Nc6 {[%clk 0:01:11]} 23. Bb2 {[%clk 0:02:26]}  Bxb2 {[%clk 0:01:05]} 24. Qxb2 {[%clk 0:02:27]}  Qe6 {[%clk 0:00:52]} 25. R5d2 {[%clk 0:02:20]}  Ne7 {[%clk 0:00:47]} 26. Bf3 {[%clk 0:02:19]}  d5 {[%clk 0:00:42]} 27. cxd5 {[%clk 0:02:06]}  Nxd5 {[%clk 0:00:43]} 28. Bg4 {[%clk 0:01:40]}  f5 {[%clk 0:00:39]} 29. Be2 {[%clk 0:01:40]}  Qf6 {[%clk 0:00:28]} 30. Bb5 {[%clk 0:01:09]}  Rd6 {[%clk 0:00:15]} 31. Qxf6 {[%clk 0:01:06]}  Nxf6 {[%clk 0:00:14]} 32. Rxd6 {[%clk 0:01:06]} 1-0


[Site "https://www.chess.com"]